{"text_format":"1","workbook":"xlsx","n_sheets":2,"sheets":["T3","Uebersetzungen"],"not_rendered":{"charts":0,"images":0,"macros":0,"external_links":0,"defined_names":0,"comments":0,"pivot_tables":0},"unopened":[],"bounds":{"document_bytes":16777216,"sheet_cells":100000,"rows_first":2000,"rows_last":500,"rows_between":2000,"halvings":0,"cell_chars":16384,"cell_head_chars":4096},"cells_cut":0,"cells_raw":0,"read":"whole","date_system":"1900"}

{"sheet":"T3","index":0,"n_rows":41,"n_cols":8,"rows_kept":41,"cut":false,"hidden":false,"merged":[[7,0,7,7],[40,0,40,4],[0,0,0,1],[38,0,38,4],[39,0,39,4],[28,0,28,4],[37,0,37,4],[29,0,29,4],[30,0,30,4],[31,0,31,4],[32,0,32,4],[8,0,8,5],[33,0,33,4],[34,0,34,4],[35,0,35,4],[36,0,36,4]]}
["Sprache / Langue / Lingua / Language"]
[]
[]
[]
[]
[]
[]
[{"$f":"VLOOKUP(\"<T3_Ti>\",Uebersetzungen!$B$3:$F$34,Uebersetzungen!B$2+1,FALSE)","v":"Veränderungsraten gegenüber dem Vorquartal, 2. Quartal 2019 - 4. Quartal 2020"}]
[{"$f":"VLOOKUP(\"<T3_UTi>\",Uebersetzungen!$B$3:$F$34,Uebersetzungen!B$2+1,FALSE)","v":"Schweizerischer Wohnimmobilienpreisindex, IMPI"},null,null,null,null,null,null,"T 3"]
[{"$f":"VLOOKUP(\"<T3_SpaltenTitel_1>\",Uebersetzungen!$B$3:$F$34,Uebersetzungen!B$2+1,FALSE)","v":"Totalindex und Subindizes (Basis: Q4 2019 = 100)"},{"$f":"VLOOKUP(\"<T3_SpaltenTitel_3>\",Uebersetzungen!$B$3:$F$34,Uebersetzungen!B$2+1,FALSE)","v":"Q2 2019 \n(in %)"},{"$f":"VLOOKUP(\"<T3_SpaltenTitel_4>\",Uebersetzungen!$B$3:$F$34,Uebersetzungen!B$2+1,FALSE)","v":"Q3 2019 \n(in %)"},{"$f":"VLOOKUP(\"<T3_SpaltenTitel_5>\",Uebersetzungen!$B$3:$F$34,Uebersetzungen!B$2+1,FALSE)","v":"Q4 2019 \n(in %)"},{"$f":"VLOOKUP(\"<T3_SpaltenTitel_6>\",Uebersetzungen!$B$3:$F$34,Uebersetzungen!B$2+1,FALSE)","v":"Q1 2020 \n(in %)"},{"$f":"VLOOKUP(\"<T3_SpaltenTitel_7>\",Uebersetzungen!$B$3:$F$34,Uebersetzungen!B$2+1,FALSE)","v":"Q2 2020 \n(in %)"},{"$f":"VLOOKUP(\"<T3_SpaltenTitel_8>\",Uebersetzungen!$B$3:$F$34,Uebersetzungen!B$2+1,FALSE)","v":"Q3 2020 \n(in %)"},{"$f":"VLOOKUP(\"<T3_SpaltenTitel_9>\",Uebersetzungen!$B$3:$F$34,Uebersetzungen!B$2+1,FALSE)","v":"Q4 2020 \n(in %)"}]
[{"$f":"VLOOKUP(\"<Zeilentitel_1>\",Uebersetzungen!$B$3:$F$34,Uebersetzungen!B$2+1,FALSE)","v":"Total "},0.5,0.1,1.8,-0.8,1.4,0.2,2.2999999999999998]
[{"$f":"VLOOKUP(\"<Zeilentitel_4>\",Uebersetzungen!$B$3:$F$34,Uebersetzungen!B$2+1,FALSE)","v":"GemeindeTyp 1"},2.2999999999999998,-0.8,3.1,-1.1000000000000001,1.7,0.8,1.2]
[{"$f":"VLOOKUP(\"<Zeilentitel_5>\",Uebersetzungen!$B$3:$F$34,Uebersetzungen!B$2+1,FALSE)","v":"GemeindeTyp 2"},0.6,1.7,-0.4,-0.7,1.7,0.3,2.6]
[{"$f":"VLOOKUP(\"<Zeilentitel_6>\",Uebersetzungen!$B$3:$F$34,Uebersetzungen!B$2+1,FALSE)","v":"GemeindeTyp 3"},1.5,-1.1000000000000001,2,-1.7,1.6,0.6,2.4]
[{"$f":"VLOOKUP(\"<Zeilentitel_7>\",Uebersetzungen!$B$3:$F$34,Uebersetzungen!B$2+1,FALSE)","v":"GemeindeTyp 4"},-1.3,0.4,1.3,0,0.9,-1,2.9]
[{"$f":"VLOOKUP(\"<Zeilentitel_8>\",Uebersetzungen!$B$3:$F$34,Uebersetzungen!B$2+1,FALSE)","v":"GemeindeTyp 5"},-0.6,0.3,2.5,-0.8,0.7,0.9,2.9]
[{"$f":"VLOOKUP(\"<Zeilentitel_2>\",Uebersetzungen!$B$3:$F$34,Uebersetzungen!B$2+1,FALSE)","v":"EFH"},1.2,0.4,1.4,-0.5,1.1000000000000001,1.1000000000000001,1.5]
[{"$f":"VLOOKUP(\"<Zeilentitel_4>\",Uebersetzungen!$B$3:$F$34,Uebersetzungen!B$2+1,FALSE)","v":"GemeindeTyp 1"},3,-0.7,2.6,0.4,0.1,2.6,0.5]
[{"$f":"VLOOKUP(\"<Zeilentitel_5>\",Uebersetzungen!$B$3:$F$34,Uebersetzungen!B$2+1,FALSE)","v":"GemeindeTyp 2"},1.2,2.2000000000000002,-0.5,-0.8,1.2,1.2,2.1]
[{"$f":"VLOOKUP(\"<Zeilentitel_6>\",Uebersetzungen!$B$3:$F$34,Uebersetzungen!B$2+1,FALSE)","v":"GemeindeTyp 3"},2.1,-0.2,2,-1.2,1.3,0.9,0.3]
[{"$f":"VLOOKUP(\"<Zeilentitel_7>\",Uebersetzungen!$B$3:$F$34,Uebersetzungen!B$2+1,FALSE)","v":"GemeindeTyp 4"},-0.7,0.8,1.1000000000000001,-1,2,-1,2.4]
[{"$f":"VLOOKUP(\"<Zeilentitel_8>\",Uebersetzungen!$B$3:$F$34,Uebersetzungen!B$2+1,FALSE)","v":"GemeindeTyp 5"},1.1000000000000001,0,1.8,-0.8,1,2.2000000000000002,1.5]
[{"$f":"VLOOKUP(\"<Zeilentitel_3>\",Uebersetzungen!$B$3:$F$34,Uebersetzungen!B$2+1,FALSE)","v":"EGW"},-0.1,-0.1,2.1,-0.9,1.6,-0.6,3.1]
[{"$f":"VLOOKUP(\"<Zeilentitel_4>\",Uebersetzungen!$B$3:$F$34,Uebersetzungen!B$2+1,FALSE)","v":"GemeindeTyp 1"},1.7,-0.8,3.5,-2.4,3.1,-0.7,1.9]
[{"$f":"VLOOKUP(\"<Zeilentitel_5>\",Uebersetzungen!$B$3:$F$34,Uebersetzungen!B$2+1,FALSE)","v":"GemeindeTyp 2"},0.2,1.4,-0.4,-0.6,2.1,-0.3,3]
[{"$f":"VLOOKUP(\"<Zeilentitel_6>\",Uebersetzungen!$B$3:$F$34,Uebersetzungen!B$2+1,FALSE)","v":"GemeindeTyp 3"},1.1000000000000001,-1.7,2,-2,1.8,0.4,3.9]
[{"$f":"VLOOKUP(\"<Zeilentitel_7>\",Uebersetzungen!$B$3:$F$34,Uebersetzungen!B$2+1,FALSE)","v":"GemeindeTyp 4"},-2,-0.1,1.6,1.3,-0.3,-1.1000000000000001,3.5]
[{"$f":"VLOOKUP(\"<Zeilentitel_8>\",Uebersetzungen!$B$3:$F$34,Uebersetzungen!B$2+1,FALSE)","v":"GemeindeTyp 5"},-3.2,1,3.7,-0.8,0.4,-1.1000000000000001,5.2]
[{"$f":"VLOOKUP(\"<Legende_1>\",Uebersetzungen!$B$3:$F$34,Uebersetzungen!B$2+1,FALSE)","v":"Legende:"}]
[{"$f":"VLOOKUP(\"<Legende_2>\",Uebersetzungen!$B$3:$F$34,Uebersetzungen!B$2+1,FALSE)","v":"Total - Wohneigentum (EFH und EGW)"}]
[{"$f":"VLOOKUP(\"<Legende_3>\",Uebersetzungen!$B$3:$F$34,Uebersetzungen!B$2+1,FALSE)","v":"EFH - Einfamilienhäuser"}]
[{"$f":"VLOOKUP(\"<Legende_4>\",Uebersetzungen!$B$3:$F$34,Uebersetzungen!B$2+1,FALSE)","v":"EGW - Eigentumswohnungen "}]
[{"$f":"VLOOKUP(\"<Legende_5>\",Uebersetzungen!$B$3:$F$34,Uebersetzungen!B$2+1,FALSE)","v":"GemeindeTyp 1 - Städtische Gemeinde einer grossen Agglomeration"}]
[{"$f":"VLOOKUP(\"<Legende_6>\",Uebersetzungen!$B$3:$F$34,Uebersetzungen!B$2+1,FALSE)","v":"GemeindeTyp 2 - Städtische Gemeinde einer mittelgrossen Agglomeration"}]
[{"$f":"VLOOKUP(\"<Legende_7>\",Uebersetzungen!$B$3:$F$34,Uebersetzungen!B$2+1,FALSE)","v":"GemeindeTyp 3 - Städtische Gemeinde einer kleinen oder ausserhalb einer Agglomeration"}]
[{"$f":"VLOOKUP(\"<Legende_8>\",Uebersetzungen!$B$3:$F$34,Uebersetzungen!B$2+1,FALSE)","v":"GemeindeTyp 4 - Intermediäre Gemeinde "}]
[{"$f":"VLOOKUP(\"<Legende_9>\",Uebersetzungen!$B$3:$F$34,Uebersetzungen!B$2+1,FALSE)","v":"GemeindeTyp 5 - Ländliche Gemeinde"}]
[]
[{"$f":"VLOOKUP(\"<Quelle>\",Uebersetzungen!$B$3:$F$34,Uebersetzungen!B$2+1,FALSE)","v":"Quelle: BFS - Schweizerischer Wohnimmobilienpreisindex, IMPI"}]
[{"$f":"VLOOKUP(\"<CopyRight>\",Uebersetzungen!$B$3:$F$34,Uebersetzungen!B$2+1,FALSE)","v":"© BFS 2021"}]
[{"$f":"VLOOKUP(\"<Auskunft>\",Uebersetzungen!$B$3:$F$34,Uebersetzungen!B$2+1,FALSE)","v":"Auskunft: Bundesamt für Statistik (BFS), IMPI@bfs.admin.ch, Tel. +41 58 463 60 69"}]

{"sheet":"Uebersetzungen","index":1,"n_rows":34,"n_cols":6,"rows_kept":34,"cut":false,"hidden":true,"merged":[]}
["Tabelle","Code","DE","FR","IT","EN"]
["Sprache",1]
["T3","<T3_Ti>","Veränderungsraten gegenüber dem Vorquartal, 2. Quartal 2019 - 4. Quartal 2020","Taux de variation par rapport au trimestre précédent, 2e trim. 2019 - 4e trim. 2020","Tassi di variazione rispetto al trimestre precedente, 2° trim. 2019 - 4° trim. 2020","Rates of change compared with the previous quarter, 2nd quarter 2019 - 4th quarter 2020"]
[null,"<T3_UTi>","Schweizerischer Wohnimmobilienpreisindex, IMPI","Indice suisse des prix de l'immobilier résidentiel, IMPI ","Indice svizzero dei prezzi degli immobili residenziali, IMPI ","Swiss Residential Property Price Index, IMPI"]
[null,"<T3_SpaltenTitel_1>","Totalindex und Subindizes (Basis: Q4 2019 = 100)","Indice total et sous-indices (Base: 4e trim. 2019 = 100)","Indice totale e sottoindici (base: 4° trim. 2019 = 100)","Total index and sub-indices (Base: Q4 2019 = 100)"]
[null,"<T3_SpaltenTitel_3>","Q2 2019 \n(in %)","2e trim. 2019 \n(en %)","2° trim. 2019 \n(in %)","Q2 2019 \n(in %)"]
[null,"<T3_SpaltenTitel_4>","Q3 2019 \n(in %)","3e trim. 2019 \n(en %)","3° trim. 2019 \n(in %)","Q3 2019 \n(in %)"]
[null,"<T3_SpaltenTitel_5>","Q4 2019 \n(in %)","4e trim. 2019 \n(en %)","4° trim. 2019 \n(in %)","Q4 2019 \n(in %)"]
[null,"<T3_SpaltenTitel_6>","Q1 2020 \n(in %)","1er trim. 2020 \n(en %)","1° trim. 2020 \n(in %)","Q1 2020 \n(in %)"]
[null,"<T3_SpaltenTitel_7>","Q2 2020 \n(in %)","2e trim. 2020 \n(en %)","2° trim. 2020 \n(in %)","Q2 2020 \n(in %)"]
[null,"<T3_SpaltenTitel_8>","Q3 2020 \n(in %)","3e trim. 2020 \n(en %)","3° trim. 2020 \n(in %)","Q3 2020 \n(in %)"]
[null,"<T3_SpaltenTitel_9>","Q4 2020 \n(in %)","4e trim. 2020 \n(en %)","4° trim. 2020 \n(in %)","Q4 2020 \n(in %)"]
[]
["T1-T5","<Zeilentitel_1>","Total ","Total ","Totale ","Total"]
[null,"<Zeilentitel_2>","EFH","MI","CU","SFH"]
[null,"<Zeilentitel_3>","EGW","PPE","APP","CONDO"]
[null,"<Zeilentitel_4>","GemeindeTyp 1","Type de communes 1","Tipo di Comune 1","Type of municipality 1"]
[null,"<Zeilentitel_5>","GemeindeTyp 2","Type de communes 2","Tipo di Comune 2","Type of municipality 2"]
[null,"<Zeilentitel_6>","GemeindeTyp 3","Type de communes 3","Tipo di Comune 3","Type of municipality 3"]
[null,"<Zeilentitel_7>","GemeindeTyp 4","Type de communes 4","Tipo di Comune 4","Type of municipality 4"]
[null,"<Zeilentitel_8>","GemeindeTyp 5","Type de communes 5","Tipo di Comune 5","Type of municipality 5"]
[]
[null,"<Legende_1>","Legende:","Légende:","Legenda:","Legend:"]
[null,"<Legende_2>","Total - Wohneigentum (EFH und EGW)","Total - Logements en propriété (MI et PPE)","Totale - Proprietà residenziale (CU e APP)","Total - Residential property (SFH and CONDO)"]
[null,"<Legende_3>","EFH - Einfamilienhäuser","MI - Maisons individuelles","CU - Case unifamiliari","SFH - Single-family houses"]
[null,"<Legende_4>","EGW - Eigentumswohnungen ","PPE - Appartements en propriété","APP - Appartementi di proprietà","CONDO - Condominiums"]
[null,"<Legende_5>","GemeindeTyp 1 - Städtische Gemeinde einer grossen Agglomeration","Type de communes 1 - Commune urbaine d'une grande agglomération ","Tipo di Comune 1 - Comune urbano di un grande agglomerato","Type of municipality 1 - Urban municipality of a large agglomeration"]
[null,"<Legende_6>","GemeindeTyp 2 - Städtische Gemeinde einer mittelgrossen Agglomeration","Type de communes 2 - Commune urbaine d'une agglomération moyenne","Tipo di Comune 2 - Comune urbano di un agglomerato medio","Type of municipality 2 - Urban  municipality of a medium-sized agglomeration"]
[null,"<Legende_7>","GemeindeTyp 3 - Städtische Gemeinde einer kleinen oder ausserhalb einer Agglomeration","Type de communes 3 - Commune urbaine d'une petite ou hors agglomération","Tipo di Comune 3 - Comune urbano di un piccolo/fuori agglomerato","Type of municipality 3 - Urban municipality of a small or outside agglomeration"]
[null,"<Legende_8>","GemeindeTyp 4 - Intermediäre Gemeinde ","Type de communes 4 - Commune intermédiaire ","Tipo di Comune 4 - Comune intermedio ","Type of municipality 4 - Intermediate municipality"]
[null,"<Legende_9>","GemeindeTyp 5 - Ländliche Gemeinde","Type de communes 5 - Commune rurale","Tipo di Comune 5 - Comune rurale","Type of municipality 5 - Rural municipality"]
[null,"<Quelle>","Quelle: BFS - Schweizerischer Wohnimmobilienpreisindex, IMPI","Sources: OFS - Indice suisse des prix de l'immobilier résidentiel, IMPI","Fonti: UST - Indice svizzero dei prezzi degli immobili residenziali, IMPI","Sources: FSO - Swiss Residential Property Price Index, IMPI"]
[null,"<CopyRight>","© BFS 2021","© OFS 2021","© UST 2021","© FSO 2021"]
[null,"<Auskunft>","Auskunft: Bundesamt für Statistik (BFS), IMPI@bfs.admin.ch, Tel. +41 58 463 60 69","Renseignements: Office fédéral de la statistique (OFS), IMPI@bfs.admin.ch, Tel. +41 58 463 60 69","Informazioni: Ufficio federale di statistica (UST), IMPI@bfs.admin.ch, tel. +41 58 463 60 69","Information: Federal Statistical Office (FSO), IMPI@bfs.admin.ch, Tel. +41 58 463 60 69 "]